bitfinex/quotes_BTCUSD_20230117
["timestamp","ask_amount","ask_price","bid_price","bid_amount"]
[1673980574545,0.25564069,21316.0,21313.0,0.469181]
[1673980575297,0.370568,21316.0,21312.0,0.469201]
[1673980575544,1.71019881,21316.0,21312.0,0.469201]
[1673980575802,1.71019881,21316.0,21311.0,0.96231355]
[1673980576051,0.19072595,21315.0,21311.0,0.96231355]
[1673980576305,0.0744,21313.0,21311.0,0.49308755]
[1673980576551,0.15,21313.0,21311.0,0.49308755]
[1673980576799,0.469197,21313.0,21311.0,0.49308755]
[1673980577058,1.16804221,21315.0,21311.0,0.96231655]
[1673980577306,0.59168,21314.0,21311.0,0.96232455]
[1673980577569,0.74168,21314.0,21311.0,0.49308755]
[1673980577839,1.3511673,21314.0,21310.0,0.469242]
[1673980578068,1.54189325,21314.0,21310.0,0.469242]
[1673980578307,1.088355,21314.0,21310.0,0.94655258]
[1673980578587,0.15,21313.0,21310.0,0.94655258]
[1673980578848,0.2903123,21313.0,21310.0,0.94655258]
[1673980579103,0.15,21313.0,21310.0,1.41581558]
[1673980579338,1.33012083,21314.0,21310.0,1.41581558]
[1673980579578,0.6094873,21314.0,21310.0,1.41581558]
[1673980579841,0.82012316,21314.0,21310.0,1.41581558]
[1673980580357,0.6094873,21314.0,21310.0,1.41581558]
[1673980581117,0.82012316,21314.0,21310.0,1.41581558]
[1673980581375,0.6094873,21314.0,21310.0,1.41581558]
[1673980581856,1.0786623,21314.0,21310.0,0.94655258]
[1673980582098,0.93835,21314.0,21310.0,0.94655258]
[1673980582604,0.469175,21314.0,21310.0,0.94656358]
[1673980582850,0.469175,21314.0,21310.0,0.94657358]
[1673980583107,0.95740635,21315.0,21310.0,1.41583658]
[1673980583359,1.07956997,21316.0,21310.0,1.41583658]
[1673980583611,1.27029592,21316.0,21310.0,1.41583658]
[1673980583867,1.27029592,21316.0,21310.0,1.5541305]
[1673980583868,0.00096767,21316.0,21310.0,1.5541305]
[1673980584137,0.19169362,21316.0,21310.0,1.76157138]
[1673980584370,0.00096767,21316.0,21311.0,0.43829392]
[1673980584627,0.00096767,21316.0,21312.0,2.3473448]
[1673980584887,0.00096767,21316.0,21313.0,0.321286]
[1673980585185,0.00096767,21316.0,21314.0,1.407525]
[1673980585403,0.00096767,21316.0,21315.0,0.42969087]
[1673980585636,0.49267755,21318.0,21315.0,1.36799687]
[1673980586130,0.63298985,21318.0,21315.0,1.36799687]
[1673980586382,0.02237755,21318.0,21315.0,1.36799687]
[1673980587480,0.02237755,21318.0,21317.0,0.15]
[1673980587738,0.02237755,21318.0,21317.0,1.557327]
[1673980588030,0.02237755,21318.0,21317.0,1.98689714]
[1673980588286,0.02237755,21318.0,21317.0,1.83689714]
[1673980588538,0.02237755,21318.0,21317.0,1.36778814]
[1673980589605,0.02237755,21318.0,21316.0,0.469128]
[1673980589606,0.2131035,21318.0,21316.0,0.469128]
[1673980589861,0.02237755,21318.0,21315.0,0.469153]
[1673980590113,0.2131035,21318.0,21315.0,0.469153]
[1673980590566,0.3534158,21318.0,21315.0,0.938306]
[1673980590806,0.13768985,21318.0,21315.0,0.469153]
[1673980591070,0.13768985,21318.0,21316.0,0.00014945]
[1673980591335,0.13768985,21318.0,21314.0,0.938309]
[1673980591597,0.71396269,21319.0,21315.0,0.469149]
[1673980592116,1.20544945,21319.0,21315.0,0.469149]
[1673980592368,1.05544945,21319.0,21315.0,0.469149]
[1673980592624,0.58637745,21319.0,21315.0,0.469149]
[1673980593161,0.58637745,21319.0,21315.0,0.8613826]
[1673980593406,0.30552655,21319.0,21315.0,0.8613826]
[1673980593668,0.09489069,21319.0,21315.0,1.3305356]
[1673980593926,0.02029069,21319.0,21315.0,1.3305356]
[1673980595507,0.02029069,21319.0,21316.0,0.00011247]
[1673980595787,0.02029069,21319.0,21317.0,0.938218]
[1673980596287,1.03302169,21319.0,21315.0,0.8613696]
[1673980596544,1.03302169,21319.0,21315.0,0.3922336]
[1673980596545,0.0085,21318.0,21315.0,0.3922336]
[1673980596814,0.81831795,21318.0,21315.0,0.3922336]
[1673980597089,0.627592,21318.0,21315.0,0.3922336]
[1673980597851,0.946679,21318.0,21315.0,0.3922336]
[1673980598421,0.09489069,21319.0,21316.0,0.469131]
[1673980598670,0.02029069,21319.0,21316.0,0.938262]
[1673980599182,0.02029069,21319.0,21317.0,0.48471436]
[1673980599471,0.02029069,21319.0,21318.0,0.938174]
[1673980601583,0.02029069,21319.0,21318.0,1.48426]
[1673980601837,0.02029069,21319.0,21318.0,1.33426]
[1673980602414,0.02029069,21319.0,21318.0,1.48426]
[1673980602670,0.02029069,21319.0,21318.0,1.33426]
[1673980603430,0.02029069,21319.0,21318.0,1.012974]
[1673980604188,0.02029069,21319.0,21318.0,1.33438131]
[1673980605692,0.02029069,21319.0,21318.0,1.33426]
[1673980606208,0.02029069,21319.0,21318.0,1.48426]
[1673980606493,0.02029069,21319.0,21318.0,1.78426]
[1673980606744,0.02029069,21319.0,21318.0,1.25946]
[1673980607246,0.02029069,21319.0,21318.0,0.938174]
[1673980608274,0.02029069,21319.0,21318.0,1.25946]
[1673980608550,0.02029069,21319.0,21318.0,1.33426]
[1673980608801,0.02029069,21319.0,21318.0,1.78426]
[1673980610081,0.02029069,21319.0,21318.0,1.85886]
[1673980610561,0.02029069,21319.0,21318.0,1.40886]
[1673980611340,0.02020561,21319.0,21318.0,1.40886]
[1673980611579,0.21093156,21319.0,21318.0,0.938174]
[1673980611834,0.02020561,21319.0,21318.0,0.938174]
[1673980612079,0.02020561,21319.0,21318.0,0.469087]
[1673980612383,0.02020561,21319.0,21318.0,0.938174]
[1673980612601,0.02020561,21319.0,21318.0,0.9383033]
[1673980613098,0.02020561,21319.0,21318.0,1.2595893]
[1673980613669,0.02020561,21319.0,21318.0,1.6338893]
[1673980613887,0.25629959,21321.0,21320.0,0.01919558]
[1673980614136,0.25629959,21321.0,21320.0,2.59145358]
[1673980614388,0.25629959,21321.0,21320.0,2.54860685]
[1673980615405,0.25629959,21321.0,21320.0,2.62320685]
[1673980616471,0.25629959,21321.0,21320.0,2.15416385]
[1673980616948,0.25629959,21321.0,21320.0,1.85416385]
[1673980617208,0.25629959,21321.0,21320.0,2.15416385]
[1673980617722,0.25629959,21321.0,21320.0,2.43836385]
[1673980617966,0.25629959,21321.0,21320.0,2.57665777]
[1673980618225,0.25629959,21321.0,21320.0,2.78409865]
[1673980618479,0.25629959,21321.0,21320.0,2.43836385]
[1673980619008,0.25629959,21321.0,21320.0,4.39093254]
[1673980619255,0.25629959,21321.0,21320.0,4.19199166]
[1673980619517,0.25629959,21321.0,21320.0,3.06125447]
[1673980621077,0.25629959,21321.0,21320.0,2.92296554]
[1673980621520,0.25629959,21321.0,21320.0,3.06125447]
[1673980621789,0.25629959,21321.0,21320.0,3.26014711]
[1673980622043,0.88335398,21322.0,21320.0,4.00033424]
[1673980622297,0.88335398,21322.0,21321.0,3.1159975]
[1673980622555,0.88335398,21322.0,21321.0,3.39264708]
[1673980622840,1.07407993,21322.0,21321.0,2.41115619]
[1673980623078,0.88335398,21322.0,21321.0,2.14908725]
[1673980623331,1.07407993,21322.0,21321.0,1.71073938]
[1673980623595,0.88335398,21322.0,21321.0,1.71073938]
[1673980624138,0.88335398,21322.0,21321.0,1.38945338]
[1673980624408,0.88335398,21322.0,21321.0,1.71048538]
[1673980624660,0.88335398,21322.0,21321.0,2.13358538]
[1673980624918,0.88335398,21322.0,21321.0,2.93754193]
[1673980625397,0.88335398,21322.0,21321.0,2.60257759]
[1673980625924,0.88335398,21322.0,21321.0,2.39507165]
[1673980626181,0.88335398,21322.0,21321.0,2.87227334]
[1673980626485,0.88335398,21322.0,21321.0,4.8110606]
[1673980626981,0.88335398,21322.0,21321.0,4.89877861]
[1673980627236,0.88335398,21322.0,21321.0,3.80557692]
[1673980627494,0.88335398,21322.0,21321.0,2.47950638]
[1673980627758,0.88335398,21322.0,21321.0,2.47989464]
[1673980628012,0.88335398,21322.0,21321.0,1.6578311]
[1673980628271,1.07407993,21322.0,21321.0,1.3367991]
[1673980628552,1.07407993,21322.0,21321.0,0.8677781]
[1673980628553,0.88335398,21322.0,21321.0,0.8677781]
[1673980629115,0.90703498,21322.0,21321.0,0.8677781]
[1673980630160,0.88335398,21322.0,21321.0,0.8677781]
[1673980630421,0.88335398,21322.0,21321.0,1.3367991]
[1673980630688,0.88335398,21322.0,21321.0,1.4598991]
[1673980630966,0.88335398,21322.0,21321.0,1.7809311]
[1673980631490,0.88335398,21322.0,21321.0,1.3367991]
[1673980631982,0.88335398,21322.0,21321.0,0.8677781]
[1673980632229,1.02556421,21322.0,21321.0,0.3987571]
[1673980632487,1.49913398,21322.0,21321.0,0.3987571]
[1673980632753,1.03013498,21322.0,21321.0,0.3987571]
[1673980633017,0.15,21321.0,21316.0,0.469113]
[1673980633270,0.78287695,21320.0,21315.0,1.00390996]
[1673980633531,0.21440695,21319.0,21315.0,1.00390996]
[1673980633787,0.19072595,21319.0,21315.0,1.00390996]
[1673980634048,0.19072595,21318.0,21315.0,1.00390996]
[1673980634320,0.19072595,21318.0,21315.0,0.53477196]
[1673980634587,0.023681,21317.0,21315.0,0.53477196]
[1673980634871,0.023681,21316.0,21315.0,0.53477196]
[1673980635126,0.592189,21318.0,21315.0,0.53477196]
[1673980635387,0.469089,21318.0,21315.0,0.53477196]
[1673980635657,0.469087,21319.0,21315.0,0.53477196]
[1673980635944,0.77619791,21320.0,21315.0,1.00391696]
[1673980636198,0.44485897,21321.0,21316.0,0.3]
[1673980636455,0.44485897,21321.0,21317.0,0.938202]
[1673980636705,0.00095897,21321.0,21317.0,0.6440622]
[1673980637731,0.19072595,21320.0,21315.0,1.47285693]
[1673980637989,0.19072595,21319.0,21316.0,0.469127]
[1673980638548,1.35345628,21321.0,21316.0,0.469127]
[1673980638549,0.469044,21320.0,21316.0,0.469127]
[1673980638811,0.46999597,21321.0,21316.0,0.469127]
[1673980639075,0.46999597,21321.0,21318.0,0.53129549]
[1673980639076,0.00095897,21321.0,21318.0,0.53129549]
[1673980639332,0.00095897,21321.0,21319.0,0.790097]
[1673980639616,0.00095897,21321.0,21320.0,0.321032]
[1673980639900,0.88335398,21322.0,21320.0,1.382218]
[1673980640166,0.88335398,21322.0,21321.0,0.89199013]
[1673980640475,0.88335398,21322.0,21321.0,1.36101113]
[1673980640735,0.88335398,21322.0,21321.0,1.90691113]
[1673980640736,0.85841965,21322.0,21321.0,1.90691113]
[1673980641293,0.85841965,21322.0,21321.0,2.04525489]
[1673980642075,0.85841965,21322.0,21321.0,2.80612124]
[1673980642390,0.85841965,21322.0,21321.0,3.42162875]
[1673980642700,0.85841965,21322.0,21321.0,4.36738341]
[1673980642957,0.85841965,21322.0,21321.0,4.18410125]
[1673980643212,0.85841965,21322.0,21321.0,3.83831205]
[1673980643783,0.61082065,21322.0,21321.0,3.9070902]
[1673980644067,0.05462514,21322.0,21321.0,3.95529152]
[1673980644347,1.15642344,21324.0,21322.0,0.97524512]
[1673980644605,0.63830456,21325.0,21322.0,0.97524512]
[1673980644606,0.63830456,21325.0,21323.0,5.38316089]
[1673980644863,0.63830456,21325.0,21324.0,2.70946593]
[1673980645346,3.81782954,21326.0,21324.0,4.61427314]
[1673980645360,3.81782954,21326.0,21324.0,5.2738454]
[1673980645611,1.93348482,21329.0,21325.0,1.63711902]
[1673980645879,1.93444796,21329.0,21327.0,0.34595082]
[1673980646136,1.93444796,21329.0,21326.0,0.48433114]
[1673980646402,0.44673891,21327.0,21325.0,0.13838033]
[1673980646686,0.44673891,21327.0,21324.0,0.13838033]
[1673980646687,0.63746486,21327.0,21324.0,0.13838033]
[1673980646938,0.44673891,21327.0,21324.0,0.13838033]
[1673980647194,0.44673891,21327.0,21323.0,0.13838033]
[1673980647462,0.15,21326.0,21324.0,0.13838033]
[1673980647741,0.15,21326.0,21324.0,0.34595082]
[1673980648010,0.44673891,21327.0,21325.0,0.45941233]
[1673980648266,0.44673891,21327.0,21324.0,0.34595082]
[1673980648549,0.63746486,21327.0,21324.0,0.13838033]
[1673980648815,0.21440695,21326.0,21322.0,1.00544595]
[1673980649108,1.08922595,21325.0,21320.0,0.13838033]
[1673980649376,0.68337295,21324.0,21318.0,0.13838033]
[1673980649638,0.1219,21320.0,21316.0,0.34595082]
[1673980649904,0.21440695,21319.0,21316.0,0.13838033]
[1673980650162,0.19072595,21319.0,21317.0,0.34618782]
[1673980650439,0.5162,21323.0,21317.0,0.34618782]
[1673980650706,0.00098835,21322.0,21318.0,0.13838033]
[1673980651230,0.00098835,21322.0,21317.0,0.13861733]
[1673980651482,0.69178598,21321.0,21317.0,0.13838033]
[1673980651943,0.15,21320.0,21316.0,0.45181886]
[1673980652200,0.023681,21319.0,21317.0,0.000237]
[1673980652461,0.15,21320.0,21316.0,0.45181886]
[1673980652723,0.47737903,21321.0,21316.0,0.45181886]
[1673980653022,0.47737903,21321.0,21317.0,0.13838033]
[1673980654057,0.66810498,21321.0,21315.0,0.34595082]
[1673980654317,0.12408835,21322.0,21317.0,0.03409641]
[1673980654318,0.00098835,21322.0,21317.0,0.03409641]
[1673980654590,0.00098835,21322.0,21319.0,0.46875082]
[1673980654847,0.00098835,21322.0,21320.0,0.90941233]
[1673980655113,0.58163433,21328.0,21323.0,0.00296505]
[1673980655373,0.000995,21326.0,21324.0,0.321032]
[1673980655630,0.000995,21326.0,21323.0,0.15296505]
[1673980655919,0.000995,21326.0,21323.0,0.00296505]
[1673980656189,0.59819999,21326.0,21323.0,0.00296505]
[1673980656456,0.40747404,21326.0,21323.0,0.00296505]
[1673980656725,0.023681,21325.0,21323.0,0.00296505]
[1673980657000,0.51557404,21326.0,21323.0,0.00296505]
[1673980657270,0.023681,21325.0,21323.0,0.00296505]
[1673980657524,0.51557404,21326.0,21323.0,0.00296505]
[1673980657778,0.023681,21325.0,21323.0,0.00296505]
[1673980658038,0.51557404,21326.0,21323.0,0.00296505]
[1673980658520,0.023681,21325.0,21323.0,0.00296505]
[1673980658774,0.204851,21324.0,21323.0,0.00296505]
[1673980659019,0.72674432,21324.0,21323.0,0.00296505]
[1673980659770,0.97174432,21324.0,21323.0,0.00296505]
[1673980660017,0.84984432,21324.0,21323.0,0.00296505]
[1673980660280,0.54557357,21324.0,21323.0,0.00296505]
[1673980661287,0.66867357,21324.0,21323.0,0.00296505]
[1673980661534,0.81867357,21324.0,21323.0,0.00296505]
[1673980662266,0.66867357,21324.0,21323.0,0.00296505]
[1673980662525,0.54557357,21324.0,21323.0,0.00296505]
[1673980663560,0.90622093,21324.0,21323.0,0.00296505]
[1673980663820,0.90622093,21324.0,21317.0,0.13925889]
[1673980663821,0.67717357,21324.0,21317.0,0.13925889]
[1673980664078,0.79010495,21323.0,21318.0,0.15]
[1673980664334,0.19072595,21322.0,21317.0,0.75836689]
[1673980664648,0.19072595,21321.0,21317.0,0.13925889]
[1673980664842,0.023679,21320.0,21317.0,0.13925889]
[1673980665094,0.19072595,21320.0,21317.0,0.13925889]
[1673980665375,0.19072595,21320.0,21315.0,0.469142]
[1673980665620,0.21440495,21319.0,21315.0,0.469142]
[1673980665879,0.19072595,21319.0,21315.0,0.60752423]
[1673980666141,1.034601,21322.0,21316.0,0.16822833]
[1673980666385,1.034601,21322.0,21316.0,1.10646933]
[1673980666630,1.22532695,21322.0,21317.0,0.15]
[1673980666908,1.034601,21322.0,21317.0,0.469108]
[1673980667179,0.023679,21321.0,21316.0,0.63735733]
[1673980667403,0.19072595,21321.0,21316.0,0.63735733]
[1673980669451,0.65975495,21321.0,21316.0,0.63735733]
[1673980669953,0.023679,21320.0,21316.0,0.63735733]
[1673980670179,0.19072595,21320.0,21316.0,0.63735733]
[1673980670680,1.54782556,21322.0,21316.0,1.10648833]
[1673980670923,1.73855151,21322.0,21316.0,1.10648833]
[1673980672710,0.21440495,21321.0,21316.0,1.10648833]
[1673980672962,0.65974695,21321.0,21316.0,1.10648833]
[1673980673212,0.023679,21320.0,21316.0,1.10648833]
[1673980673488,0.19072595,21320.0,21316.0,1.10648833]
[1673980673719,0.023679,21319.0,21316.0,1.28448833]
[1673980673960,0.78286395,21321.0,21316.0,0.63735933]
[1673980674203,0.023679,21320.0,21319.0,0.02367899]
[1673980675219,1.54782356,21322.0,21319.0,0.02367899]
[1673980675482,2.01683956,21322.0,21319.0,0.20167899]
[1673980675750,0.023679,21321.0,21319.0,0.02367899]
[1673980676058,0.00098437,21322.0,21319.0,1.13980799]
[1673980676260,0.00098437,21322.0,21320.0,0.321039]
[1673980676518,0.19072595,21322.0,21319.0,0.81172673]
[1673980676768,0.5372976,21324.0,21319.0,0.34266273]
[1673980676769,0.468991,21323.0,21319.0,0.34266273]
[1673980677562,0.023679,21322.0,21319.0,0.34266273]
[1673980677790,0.469006,21322.0,21319.0,0.34266273]
[1673980678044,0.023679,21321.0,21319.0,0.34266273]
[1673980678299,0.938005,21322.0,21319.0,0.34266273]
[1673980678817,0.468977,21323.0,21319.0,0.98971773]
[1673980679317,1.0062546,21324.0,21319.0,1.45878273]
[1673980679845,1.19698055,21324.0,21319.0,1.45878273]
[1673980680079,1.94813523,21324.0,21319.0,1.28078273]
[1673980680352,0.21440495,21323.0,21319.0,0.81172773]
[1673980680620,0.468999,21322.0,21319.0,0.81172773]
[1673980680865,0.023679,21321.0,21319.0,0.81172773]
[1673980681113,0.468999,21322.0,21319.0,0.81172773]
[1673980681619,0.468986,21323.0,21319.0,0.81172773]
[1673980681620,0.468986,21323.0,21319.0,1.28079273]
[1673980681923,0.468986,21323.0,21319.0,0.98972773]
[1673980682182,0.592069,21324.0,21320.0,0.178]
[1673980682462,0.46989924,21325.0,21321.0,0.647019]
[1673980682719,0.46990624,21325.0,21321.0,0.647019]
[1673980682972,0.95180385,21324.0,21321.0,0.178]
[1673980683229,1.6114848,21324.0,21319.0,0.81171373]
[1673980683478,0.21440495,21323.0,21319.0,0.81171373]
[1673980683972,1.12870295,21323.0,21320.0,0.00013107]
[1673980684223,0.937977,21323.0,21320.0,0.00013107]
[1673980684497,0.468982,21323.0,21320.0,0.00013107]
[1673980684754,0.46988924,21325.0,21321.0,0.23641712]
[1673980684755,0.00095324,21325.0,21321.0,0.23641712]
[1673980685018,0.00095324,21325.0,21322.0,1.437027]
[1673980685322,0.00095324,21325.0,21323.0,0.321039]
[1673980685582,0.00095324,21325.0,21324.0,1.436949]
[1673980685845,0.02493433,21328.0,21325.0,0.00190647]
[1673980686111,0.02493433,21328.0,21326.0,0.321039]
[1673980686377,0.02493433,21328.0,21325.0,0.00190647]
[1673980686690,0.023679,21327.0,21325.0,0.17990647]
[1673980686943,0.02493433,21328.0,21325.0,0.00190647]
[1673980687205,0.02493433,21328.0,21325.0,0.47082547]
[1673980687463,0.02493433,21328.0,21325.0,0.64882547]
[1673980687744,0.02493433,21328.0,21325.0,0.47082547]
[1673980688024,0.02493433,21328.0,21325.0,0.00190647]
[1673980688285,0.02493433,21328.0,21325.0,0.47083847]
[1673980689092,0.02493433,21328.0,21325.0,0.47083547]
[1673980689906,0.02493433,21328.0,21326.0,0.00026173]
[1673980691174,0.02493433,21328.0,21326.0,0.23236485]
[1673980691437,0.02493433,21328.0,21326.0,0.38236485]
[1673980691722,0.02493433,21328.0,21326.0,0.70127485]
[1673980691960,0.02493433,21328.0,21326.0,0.23236485]
[1673980692217,0.02493433,21328.0,21325.0,0.00190647]
[1673980692476,0.023679,21327.0,21325.0,0.47082647]
[1673980692737,0.19072595,21327.0,21325.0,0.47283215]
[1673980693002,0.02493433,21328.0,21327.0,0.40553367]
[1673980693314,0.02493433,21328.0,21327.0,0.90457267]
[1673980693574,0.02493433,21328.0,21327.0,0.72657267]
[1673980694395,0.02493433,21328.0,21327.0,0.40553367]
[1673980695764,0.21566028,21328.0,21325.0,0.00190647]
[1673980696034,0.21566028,21328.0,21326.0,0.00059756]
[1673980696328,0.02493433,21328.0,21325.0,0.00190647]
[1673980696585,0.023679,21327.0,21325.0,0.00190647]
[1673980697145,0.02493433,21328.0,21325.0,0.00190647]
[1673980697409,0.1231,21326.0,21325.0,0.00190647]
[1673980697936,1.02794685,21328.0,21325.0,0.00190647]
[1673980698208,1.02794685,21328.0,21325.0,0.18050407]
[1673980698508,0.59193433,21328.0,21325.0,0.00250407]
[1673980698783,0.02493433,21328.0,21325.0,0.00250407]
[1673980699058,0.42801438,21327.0,21325.0,0.00190647]
[1673980699305,0.114499,21326.0,21325.0,0.00190647]
[1673980699856,0.114499,21326.0,21325.0,0.00327401]
[1673980700124,0.09082,21326.0,21325.0,0.00190647]
[1673980700386,0.023679,21326.0,21325.0,0.00190647]
[1673980700698,0.42801438,21327.0,21325.0,0.00190647]
[1673980700959,0.02493433,21328.0,21325.0,0.00190647]
[1673980701799,0.64112768,21327.0,21325.0,0.00190647]
[1673980702066,0.61744868,21327.0,21325.0,0.00190647]
[1673980702338,0.204849,21326.0,21325.0,0.00190647]
[1673980702606,0.354849,21326.0,21325.0,0.00190647]
[1673980704165,0.204849,21326.0,21325.0,0.00190647]
[1673980704424,0.023679,21326.0,21325.0,0.00190647]
[1673980704951,0.42613436,21326.0,21325.0,0.00190647]
[1673980705430,0.786449,21326.0,21325.0,0.00190647]
[1673980705698,0.486449,21326.0,21325.0,0.00190647]
[1673980706212,0.786449,21326.0,21325.0,0.00190647]
[1673980706484,0.336449,21326.0,21325.0,0.00190647]
[1673980706730,0.023679,21326.0,21325.0,0.00190647]
[1673980707997,0.49441177,21326.0,21325.0,0.00190647]
[1673980708244,0.327949,21326.0,21325.0,0.00190647]
[1673980708500,0.122999,21326.0,21325.0,0.00190647]
[1673980709017,0.032179,21326.0,21325.0,0.00190647]
[1673980709507,0.023679,21326.0,21325.0,0.00190647]
[1673980710010,0.204849,21326.0,21325.0,0.00190647]
[1673980710807,0.023679,21326.0,21325.0,0.00190647]
[1673980711796,0.237129,21326.0,21325.0,0.00190647]
[1673980712297,0.146779,21326.0,21325.0,0.00190647]
[1673980713553,0.023679,21326.0,21325.0,0.00420456]
[1673980713810,0.018679,21326.0,21325.0,0.00190647]
[1673980714353,0.018679,21326.0,21325.0,0.06038421]
[1673980715620,1.02054868,21327.0,21325.0,0.06038421]
[1673980715888,0.01869,21326.0,21325.0,0.06038421]
[1673980716146,0.5262,21327.0,21326.0,0.01868999]
[1673980716407,0.6202,21329.0,21326.0,0.01868999]
[1673980716849,0.03537299,21330.0,21327.0,0.178]
[1673980717090,0.03537299,21330.0,21328.0,0.178]
[1673980717533,0.03537299,21330.0,21326.0,0.74735302]
[1673980717766,0.03440444,21330.0,21327.0,0.320967]
[1673980717992,0.03440444,21330.0,21328.0,0.320967]
[1673980718295,0.03440444,21330.0,21326.0,0.33507222]
[1673980718551,0.03440444,21330.0,21326.0,0.36467754]
[1673980718552,0.22513039,21330.0,21326.0,0.36467754]
[1673980718831,0.03440444,21330.0,21327.0,0.37008177]
[1673980719103,0.03440444,21330.0,21328.0,0.320967]
[1673980719363,0.03395051,21330.0,21329.0,0.320967]
[1673980719632,0.03395051,21330.0,21327.0,0.358464]
[1673980719894,0.03395051,21330.0,21327.0,0.22008177]
[1673980720402,0.03395051,21330.0,21328.0,0.320967]
[1673980720938,0.5734057,21334.0,21327.0,0.22008177]
[1673980720942,1.26873928,21334.0,21327.0,0.22008177]
[1673980721195,0.4647968,21333.0,21328.0,0.178]
[1673980721460,0.01869,21332.0,21328.0,0.178]
[1673980721738,0.1231,21330.0,21327.0,0.22008177]
[1673980722002,0.1231,21330.0,21326.0,0.01868999]
[1673980722003,0.35941595,21329.0,21326.0,0.01868999]
[1673980722269,0.1219,21327.0,21323.0,0.13838223]
[1673980722527,0.20941595,21326.0,21323.0,0.13838223]
[1673980722780,0.19072595,21326.0,21323.0,0.13838223]
[1673980723627,0.00095624,21328.0,21323.0,0.13838223]
[1673980723888,0.00095624,21328.0,21323.0,0.31638223]
[1673980724144,0.01869,21327.0,21323.0,0.31638223]
[1673980724402,0.00095624,21328.0,21324.0,0.30031621]
[1673980724691,0.00095624,21328.0,21324.0,0.61669844]
[1673980725219,0.00095624,21328.0,21324.0,0.43869844]
[1673980725486,0.19168219,21328.0,21324.0,0.30031621]
[1673980726015,0.00095624,21328.0,21325.0,0.00033225]
[1673980726297,0.00095624,21328.0,21324.0,0.47831621]
[1673980726550,0.00095624,21328.0,21324.0,0.43869844]
[1673980727069,0.00095624,21328.0,21325.0,0.00033225]
[1673980727598,0.00095624,21328.0,21325.0,0.00056454]
[1673980728672,0.72403394,21328.0,21325.0,0.00056454]
[1673980728867,0.68330799,21328.0,21325.0,0.00056454]
[1673980729642,0.1231,21327.0,21325.0,0.00056454]
[1673980729975,0.18967,21326.0,21325.0,0.00056454]
[1673980730196,0.35199797,21326.0,21325.0,0.00056454]
[1673980730458,0.47509797,21326.0,21325.0,0.00056454]
[1673980730719,2.03183097,21326.0,21325.0,0.00056454]
[1673980732051,2.52985996,21326.0,21325.0,0.00056454]
[1673980732627,2.21753199,21326.0,21325.0,0.00056454]
[1673980733976,2.51753199,21326.0,21325.0,0.00056454]
[1673980734516,2.6578311,21326.0,21325.0,0.00056454]
[1673980735632,3.13503279,21326.0,21325.0,0.00056454]
[1673980736406,3.34566865,21326.0,21325.0,0.00056454]
[1673980736732,3.80272281,21326.0,21325.0,0.00056454]
[1673980736982,2.3578311,21326.0,21325.0,0.00056454]
[1673980737238,2.09443199,21326.0,21325.0,0.00056454]
[1673980738724,0.937822,21326.0,21325.0,0.00056454]
[1673980739218,0.468911,21326.0,21325.0,0.00056454]
[1673980741708,0.468897,21327.0,21325.0,0.00056454]
[1673980741952,0.94307773,21328.0,21325.0,0.00056454]
[1673980742206,0.46984024,21328.0,21325.0,0.17856454]
[1673980742457,0.00095624,21328.0,21325.0,0.64749554]
[1673980742706,0.00095624,21328.0,21325.0,0.46949554]
[1673980743487,0.46982524,21328.0,21325.0,0.00056454]
[1673980744499,0.00095624,21328.0,21326.0,0.40041512]
[1673980744752,0.00095624,21328.0,21327.0,0.468889]
[1673980745021,0.468817,21331.0,21327.0,0.937778]
[1673980745269,0.46979306,21331.0,21328.0,0.178]
[1673980745535,0.46979306,21331.0,21327.0,0.468874]
[1673980746036,0.46979306,21331.0,21327.0,0.93775]
[1673980746282,1.12932001,21331.0,21327.0,0.468874]
[1673980746537,0.69363654,21330.0,21325.0,0.00056454]
[1673980746792,1.12843795,21329.0,21325.0,0.00056454]
[1673980747289,1.12843795,21329.0,21325.0,0.46949454]
[1673980747542,1.4117713,21329.0,21325.0,0.46949454]
[1673980747789,1.5617713,21329.0,21325.0,0.46949454]
[1673980748039,1.5617713,21329.0,21325.0,0.00056454]
[1673980748291,0.15,21328.0,21325.0,0.00056454]
[1673980748554,1.087765,21328.0,21325.0,0.00056454]
[1673980748832,0.21806803,21327.0,21325.0,0.00056454]
[1673980749076,0.4689,21327.0,21325.0,0.00045282]
[1673980749838,0.937789,21327.0,21325.0,0.00045282]
[1673980751333,1.087789,21327.0,21325.0,0.00045282]
[1673980752352,0.15,21326.0,21325.0,0.00045282]
[1673980752599,1.087822,21326.0,21325.0,0.00045282]
[1673980753089,0.15,21327.0,21325.0,0.00045282]
[1673980753344,0.618902,21327.0,21325.0,0.00045282]
[1673980753590,0.72600576,21326.0,21325.0,0.00045282]
[1673980753836,1.66382776,21326.0,21325.0,0.00045282]
[1673980754090,1.98724115,21326.0,21325.0,0.00045282]
[1673980755132,2.28724115,21326.0,21325.0,0.00045282]
[1673980755902,2.42754026,21326.0,21325.0,0.00045282]
[1673980756144,2.10412687,21326.0,21325.0,0.00045282]
[1673980756667,1.96382776,21326.0,21325.0,0.00045282]
[1673980757425,1.81382776,21326.0,21325.0,0.00045282]
[1673980757673,1.96382776,21326.0,21325.0,0.00045282]
[1673980757925,2.41327832,21326.0,21325.0,0.00045282]
[1673980758240,1.66382776,21326.0,21325.0,0.00045282]
[1673980758432,1.96382776,21326.0,21325.0,0.00045282]
[1673980759925,1.39192776,21326.0,21325.0,0.00045282]
[1673980760440,1.86083876,21326.0,21325.0,0.00045282]
[1673980760693,2.31083876,21326.0,21325.0,0.00045282]
[1673980760942,2.78320881,21326.0,21325.0,0.00045282]
[1673980761187,2.31083876,21326.0,21325.0,0.00045282]
[1673980761435,1.96534351,21326.0,21325.0,0.00045282]
[1673980762701,1.8250444,21326.0,21325.0,0.00045282]
[1673980762949,1.66534351,21326.0,21325.0,0.00045282]
[1673980763204,1.3750444,21326.0,21325.0,0.00045282]
[1673980763466,1.3835444,21326.0,21325.0,0.00045282]
[1673980763713,0.9146334,21326.0,21325.0,0.00045282]
[1673980764219,0.4372224,21326.0,21325.0,0.17845282]
[1673980764473,0.937766,21328.0,21325.0,0.00045282]
[1673980764720,0.937762,21328.0,21325.0,0.17845282]
[1673980764978,0.46888,21328.0,21325.0,0.17845282]
[1673980765233,0.46888,21328.0,21325.0,0.46938482]
[1673980765485,0.468865,21329.0,21326.0,0.178]
[1673980765819,1.02779306,21331.0,21327.0,1.059678]
[1673980766257,1.02779306,21331.0,21327.0,1.237678]
[1673980766763,1.02779306,21331.0,21327.0,1.059678]
[1673980767031,1.49659406,21331.0,21327.0,1.059678]
[1673980767491,1.49659406,21331.0,21327.0,0.646889]
[1673980767749,1.49659406,21331.0,21327.0,0.468889]
[1673980768538,1.90614309,21331.0,21327.0,0.468889]
[1673980768785,1.90614309,21331.0,21326.0,0.96929399]